Cogmind - Beta 15 *** ADVENTURER MODE // 2025.07.03 @ 08:25:01 Player: Olexender Result: Destroyed by Y-64 Sentinel with Wave Gun Performance ------------- Evolutions (6) 3000 Regions Visited (18) 3600 Robots Destroyed (258) 1290 Value Destroyed (14644) 14644 Prototype IDs (28) 560 Alien Tech Used (0) 0 Bonus (5015) 5015 TOTAL SCORE: 28109 Bonus ------- High Alert Combat Kills 1955 Follower Combat Kills 2076 Entered Garrisons 600 Entered DSFs 500 Met Imprinter 300 Was Imprinted 300 Friendly Fire -716 Cogmind --------- Core Integrity 0/1150 Matter 847/1100 Energy 1446/1450 System Corruption 10% Temperature Cool (9) Movement Walking (330) Ox3 Location -4/Garrison Parts ------- > --- POWER (2) -------- Hybrid Antimatter Reactor > --- PROPULSION (7) --- Flexi-carbon Leg > --- UTILITY (7) ------ Advanced Heat Sink Advanced Heat Sink High-capacity Storage Unit Energy Well Advanced Matter Compressor Advanced Matter Compressor Advanced ECM Suite > --- WEAPON (3) ------- Autogun Autogun KE Penetrator > --- INVENTORY (20) --- Reinforced Fission Core Plasma Rifle Phasing Sabre CR-A16's Pointy Stick Peak State ------------ > --- POWER ------------ Particle Reactor Particle Reactor > --- PROPULSION ------- Improved Thunder Leg Heavy Armored Exoskeleton > --- UTILITY ---------- Advanced Cooling System Small Storage Unit IFF Parser Advanced Remote Force Field Hacking Drone Bay > --- WEAPON ----------- Quantum Rifle Linear Accelerator Linear Accelerator > --- INVENTORY -------- Improved Cooling System Compact Battery High-capacity Matter Pod Improved Medium Armor Plating Phasing AFG Phasing Sabre CR-A16's Pointy Stick Enhanced Force Lance [Rating: 113] Favorites ----------- Power Hybrid Antimatter Reactor Engine Improved Deuterium Engine Power Core Micro Nuclear Core Reactor Hybrid Antimatter Reactor Propulsion Flexi-carbon Leg Treads Improved Treads Leg Flexi-carbon Leg Wheel Wheel Hover Unit Improved Hover Unit Utility Small Storage Unit Device Improved Cooling System Storage Small Storage Unit Processor Improved Targeting Computer Hackware System Shield Protection Improved Medium Armor Plating Weapon Autogun Energy Gun Particle Gun Energy Cannon Heavy Plasma Cannon Ballistic Gun Autogun Ballistic Cannon Linear Accelerator Special Weapon RU-N14's Throwing Claymores Slashing Weapon Phasing Sabre Piercing Weapon Enhanced Force Lance Build | -11 -10 -10 -9 -8 -7 -7 -7 -6 -6 -6 -6 -6 -6 -6 -5 -5 -4 -4 ------- Run | Yrd Mat Min Mat Mat Fac Low Zio Pro Fac Gar Fac Gar Fac DSF Fac Ext Fac Gar Slots Evolved 12 | . . . 2 2 2 . . . 2 . . . . . 2 . 2 . Power 1 | . . . . . 1 . . . . . . . . . . . . . Propulsion 5 | . . . 1 1 . . . . 1 . . . . . 1 . 1 . Utility 5 | . . . 1 1 . . . . 1 . . . . . 1 . 1 . Weapon 1 | . . . . . 1 . . . . . . . . . . . . . Parts Attached 247 | 6 . 3 14 44 13 13 8 5 16 19 4 10 2 4 10 25 17 34 Power 31 | 1 . 2 3 6 3 1 1 . 3 2 . 2 . 2 1 1 1 2 Engine 12 | 1 . 2 2 1 2 . 1 . 1 . . 1 . . 1 . . . Core 14 | . . . 1 5 1 1 . . 1 . . . . 2 . 1 1 1 Reactor 5 | . . . . . . . . . 1 2 . 1 . . . . . 1 Propulsion 81 | 2 . 1 5 17 1 6 2 2 5 7 . 1 . . 2 12 5 13 Treads 4 | . . . . . . 1 . . . . . . . . . . . 3 Leg 64 | 2 . 1 . 16 1 1 1 2 3 7 . 1 . . 2 12 5 10 Wheel 4 | . . . . . . 3 1 . . . . . . . . . . . Hover 9 | . . . 5 1 . 1 . . 2 . . . . . . . . . Flight . | . . . . . . . . . . . . . . . . . . . Utility 69 | 1 . . 3 10 5 2 4 1 4 4 4 5 1 1 3 8 7 6 Device 44 | . . . 3 6 3 1 4 . 2 3 2 3 1 1 3 2 5 5 Storage 7 | 1 . . . . 1 . . . . . 2 . . . . 2 1 . Processor 2 | . . . . 1 . . . . 1 . . . . . . . . . Hackware 1 | . . . . . . . . . . . . 1 . . . . . . Protection 15 | . . . . 3 1 1 . 1 1 1 . 1 . . . 4 1 1 Artifact . | . . . . . . . . . . . . . . . . . . . Weapon 66 | 2 . . 3 11 4 4 1 2 4 6 . 2 1 1 4 4 4 13 Energy Gun 21 | 1 . . 2 9 1 2 . . . 1 . . . . . . . 5 Energy Cannon 3 | . . . . 1 . . . . . 1 . . . . . . . 1 Ballistic Gun 21 | 1 . . 1 1 3 1 1 . . . . . 1 . 2 3 1 6 Ballistic Cannon 14 | . . . . . . . . . 4 2 . 1 . 1 2 . 3 1 Launcher . | . . . . . . . . . . . . . . . . . . . Special Weapon 2 | . . . . . . . . 2 . . . . . . . . . . Impact Weapon . | . . . . . . . . . . . . . . . . . . . Slashing Weapon 3 | . . . . . . 1 . . . 1 . . . . . 1 . . Piercing Weapon 2 | . . . . . . . . . . 1 . 1 . . . . . . Special Melee Weapon . | . . . . . . . . . . . . . . . . . . . Unidentified Prototypes 7 | . . . . . . . 3 1 1 . . . . . 1 1 . . Corrupted Parts 1 | . . . . . . . . . . . . . . . . . . 1 System Corruption 2 | . . . . . . . . . . . . . . . . . . 2 Parts Lost 117 | . . 1 1 25 5 11 . 4 1 2 . 8 . 1 . 5 13 40 Power 13 | . . 1 . 4 1 1 . 1 . . . 2 . . . . . 3 Propulsion 46 | . . . . 11 2 5 . 2 . 1 . 1 . . . 2 5 17 Utility 34 | . . . 1 5 1 1 . 1 1 1 . 4 . 1 . 3 5 10 Weapon 24 | . . . . 5 1 4 . . . . . 1 . . . . 3 10 Highest Loss Streak 16 | . . 1 1 16 3 6 . 2 1 1 . 5 . 1 . 2 6 12 To Critical Strikes 4 | . . . . . . . . . . . . 1 . . . 1 . 2 Average Backups 8 | 1 1 2 7 6 7 4 6 6 6 7 8 8 10 9 9 10 15 10 Power . | . 1 1 1 . . . . . . . . . 1 1 . . 1 1 Propulsion . | . . . 4 1 3 . . . . . . . 1 1 . . . . Utility 4 | . . 1 1 2 2 2 3 3 4 4 5 5 5 4 4 6 8 4 Weapon 2 | . . . 1 1 1 1 2 3 2 2 3 2 3 3 4 3 5 4 Tool/Special . | . . . . . . . . . . . . . . . . . . . Unused Backups 15 | . . . 1 . 1 1 . 1 1 2 1 2 . 1 2 1 1 . Power 3 | . . . . . . . . . . 1 . . . 1 1 . . . Propulsion 2 | . . . . . . 1 . . 1 . . . . . . . . . Utility 6 | . . . 1 . . . . . . 1 1 2 . . . 1 . . Weapon 4 | . . . . . 1 . . 1 . . . . . . 1 . 1 . Tool/Special . | . . . . . . . . . . . . . . . . . . . Average Slot Usage (%) 83 | . 85 84 93 91 91 84 96 89 96 91 80 74 80 71 80 93 92 52 Engine 3 | . 14 13 10 1 6 10 7 4 4 . . 4 6 3 . 3 . . Core 3 | . . . . 7 6 3 7 7 1 3 . . . 2 4 1 5 1 Reactor 4 | . . . . . . . . . 4 8 13 6 6 6 5 4 5 5 Leg 17 | . 28 28 2 26 29 8 10 14 28 24 13 11 13 13 16 28 30 9 Wheel 2 | . . . . . . 6 16 10 1 . . . . . . . . . Hover 1 | . . . 30 5 . 2 . . . . . . . . . . . . Device 14 | . . . 16 15 12 13 14 12 13 15 20 14 13 9 17 16 21 7 Storage 6 | . 14 14 11 9 7 7 7 7 6 6 6 6 6 6 5 5 5 8 Protection 5 | . . . . 5 6 6 6 7 6 6 5 3 6 6 4 10 8 1 Energy Gun 5 | . 14 14 11 13 11 9 7 4 1 2 6 3 5 . . . . 4 Ballistic Gun 5 | . 14 14 11 1 7 7 14 15 1 . . . 1 6 5 7 6 4 Ballistic Cannon 4 | . . . . . . . . . 16 10 13 5 13 8 9 3 8 1 Piercing Weapon 1 | . . . . . . . . . . 2 . 6 . . . 3 . 1 Peak Build Rating 113 | 6 6 6 18 29 37 38 47 52 73 109 113 112 96 94 110 104 103 106 Average Rating 63 | 3 6 5 15 23 31 29 34 42 64 82 106 92 95 88 102 84 94 51 On Entrance 55 | . 6 6 6 18 23 37 26 38 50 66 105 109 96 92 93 104 88 95 Naked Turns . | . . . . . . . . . . . . . . . . . . . Heaviest Build 116 | 11 11 13 20 27 42 42 36 50 71 102 104 104 62 71 78 105 116 116 Greatest Support 145 | 20 20 20 30 52 54 49 33 55 95 118 118 118 108 108 131 131 143 145 Greatest Overweight (x) 31 | . . . . 2 . 3 3 2 3 . . . . . . 1 1 31 Average Overweight (x) . | . . . . . . 2 . . . . . . . . . . . 2 Largest Inventory Capacity 20 | 8 8 8 8 8 8 8 8 8 8 8 10 10 10 10 10 20 20 20 Average Capacity 10 | 6 8 8 8 8 8 8 8 8 8 8 8 10 10 10 10 12 20 20 Most Carried 20 | 5 2 4 8 8 8 8 8 8 8 8 9 10 10 10 10 13 20 17 Average Carried 8 | 2 1 2 7 6 7 4 7 6 7 7 8 8 10 9 9 10 15 10 Final Capacity 20 | 8 8 8 8 8 8 8 8 8 8 8 10 10 10 10 10 20 20 20 Final Carried 15 | 1 2 4 8 7 8 3 8 6 8 7 9 10 10 10 10 13 15 4 Class Distribution -------------------- 34% | Scavenger-Tank 23% | Scavenger-Mutant 16% | Mutant 13% | Scavenger-Gunner 7% | Tank Dominant Class ---------------- Mutant | -10/Materials Mutant | -10/Mines Scavenger-Mutant | -9/Materials Scavenger-Mutant | -8/Materials Scavenger-Tank | -7/Factory Scavenger-Mutant | -7/Lower Caves Scavenger-Tank | -7/Zion Scavenger-Tank | -6/Proximity Caves Scavenger-Gunner | -6/Factory Scavenger-Gunner | -6/Garrison Tank | -6/Factory Scavenger-Mutant | -6/Garrison Scavenger-Tank | -6/Factory Scavenger-Tank | -6/DSF Scavenger-Skirmisher | -5/Factory Scavenger-Tank | -5/Extension Scavenger-Tank | -4/Factory Scavenger-Gunner | -4/Garrison Resources | -11 -10 -10 -9 -8 -7 -7 -7 -6 -6 -6 -6 -6 -6 -6 -5 -5 -4 -4 ----------- Run | Yrd Mat Min Mat Mat Fac Low Zio Pro Fac Gar Fac Gar Fac DSF Fac Ext Fac Gar Matter Collected 11465 | 207 27 215 311 565 291 295 84 302 262 2072 562 712 . 333 184 1414 1367 2262 Remotely 95 | . . . . . . 31 64 . . . . . . . . . . . Salvage Created 11050 | . 27 134 520 1609 822 554 . 483 525 734 690 685 . 480 116 706 963 2002 Parts 473 | . 2 2 30 48 33 24 . 10 25 31 36 28 . 25 8 39 40 92 Haulers Intercepted . | . . . . . . . . . . . . . . . . . . . Recyclers Shooed 6 | . . . 1 1 2 . . . . . . . . . . 2 . . Parts Field Recycled . | . . . . . . . . . . . . . . . . . . . Retrieved Matter . | . . . . . . . . . . . . . . . . . . . Parts Self-Destructed 26 | . . . . . . 18 . 8 . . . . . . . . . . Prevented 9 | . . . . . . 4 . 5 . . . . . . . . . . Kills | -11 -10 -10 -9 -8 -7 -7 -7 -6 -6 -6 -6 -6 -6 -6 -5 -5 -4 -4 ------- Run | Yrd Mat Min Mat Mat Fac Low Zio Pro Fac Gar Fac Gar Fac DSF Fac Ext Fac Gar Combat Hostiles Destroyed 222 | . . 3 12 29 11 12 . 12 12 27 12 16 . 10 3 10 18 35 Melee 16 | . . . . . . 1 . . . . . 6 . . . 3 . 6 Guns 101 | . . 2 12 24 10 11 . 6 . . . 1 . 4 . 6 5 20 Cannons 91 | . . . . 4 . . . 1 10 25 11 9 . 6 3 1 13 8 AOE 8 | . . . . . . . . 5 2 . 1 . . . . . . . Classes Destroyed 18 | . 1 1 2 5 2 2 . . 1 . . . . 2 . 1 . 1 Worker 8 | . . . . 1 . . . . 2 . 2 . . . . . 3 . Builder 5 | . . . . . 1 . . . . . 1 . . . . 2 1 . Recycler 9 | . . . . 2 4 . . . 2 . 1 . . . . . . . Operator 4 | . . . . . 1 . . . 1 . 2 . . . . . . . Watcher 7 | . 1 . 2 . . . . . 1 . 2 . . . . 1 . . Swarmer 45 | . . . 3 . 4 3 . 1 8 13 . . . 4 . . 2 7 Cutter 3 | . . . . . . . . . . . . . . . . . . 3 Grunt 92 | . . 3 6 21 3 3 . 8 . 5 6 8 . . 2 3 7 17 Brawler 6 | . . . . 3 . 1 . 1 . . . . . . . 1 . . Duelist 4 | . . . . 1 . 1 . 1 . 1 . . . . . . . . Sentry 30 | . . . 3 3 3 2 . 1 1 5 2 2 . . . 3 2 3 Specialist 3 | . . . . . . . . . . . . . . 3 . . . . Hunter 16 | . . . . 1 1 . . . 2 . 2 2 . 2 1 2 3 . Programmer 15 | . . . . . . 1 . . 1 1 2 3 . . . 1 2 4 Heavy 1 | . . . . . . . . . . . . . . 1 . . . . Behemoth 7 | . . . . . . 1 . . . 2 . 1 . . . . 2 1 Surgeon 1 | . . . . . . . . . . . . . . . . 1 . . Mutant 2 | . . . . . . . . . 2 . . . . . . . . . Best Kill Streak 10 | . 1 2 4 6 10 6 . 8 5 6 6 2 . 4 2 3 7 7 Combat Bots Only 8 | . . 2 4 6 4 6 . 8 3 6 3 2 . 4 2 2 6 7 Max Kills in Single Turn 6 | . 1 1 2 1 2 2 . 3 6 2 5 1 . 1 1 2 1 2 Gunslinging 1 | . . . . . 1 1 . 1 . . . . . . . . . . Exploded 3 | . . . . . . . . 3 2 . 1 . . . . . . . Melee 1 | . . . . . . 1 . . . . . 1 . . . 1 . 1 Uniques/NPCs Destroyed . | . . . . . . . . . . . . . . . . . . . Combat | -11 -10 -10 -9 -8 -7 -7 -7 -6 -6 -6 -6 -6 -6 -6 -5 -5 -4 -4 -------- Run | Yrd Mat Min Mat Mat Fac Low Zio Pro Fac Gar Fac Gar Fac DSF Fac Ext Fac Gar Hostile Shots Fired 2248 | . . 28 61 338 209 100 . 79 38 178 70 272 . 78 13 112 193 479 Missed 701 | . . 10 17 103 93 26 . 26 15 63 31 75 . 21 5 32 74 110 Hits 1547 | . . 18 44 235 116 74 . 53 23 115 39 197 . 57 8 80 119 369 Melee 19 | . . . . 4 . . . 2 . 6 . . . . . 2 . 5 Projectile 1528 | . . 18 44 231 116 74 . 51 23 109 39 197 . 57 8 78 119 364 AOE 4 | . . . . . . . . . . . . . . . . . 4 . Critical Strikes 77 | . . . 1 13 1 4 . 3 . 4 2 10 . . 1 3 10 25 Damage Taken 21509 | . . 211 407 2912 898 1103 . 727 303 1415 241 3036 . 770 100 1318 2373 5695 Core 2689 | . . 24 58 504 123 223 . 82 17 126 16 263 . 66 7 19 87 1074 Absorbed by Shields 1613 | . . . . . . . . 114 . . 227 248 . . 15 226 . 783 Redirected to Shielding 58 | . . . . . . . . . . . . . . 26 2 6 24 . Ignored by Resistances 6545 | . . 60 126 840 285 308 . 234 90 411 133 901 . 227 33 424 655 1818 Regen/Repaired (Parts) 618 | . . . . . . . 564 . . . . . . . . 54 . . Core Remaining (%) 65 | 100 . 90 85 8 . . . 38 . . . . . 42 . 97 . . Volleys Fired 721 | . 1 26 39 115 40 31 . 24 19 97 31 47 . 24 11 33 70 113 Largest 3 | . 2 2 2 2 3 3 . 3 3 3 3 3 . 3 3 3 3 3 Hottest 202 | . 70 70 79 133 158 153 . 116 149 174 202 202 . 128 129 117 136 200 Shots Fired 1789 | . 2 52 77 203 103 76 . 60 54 273 89 110 . 55 33 99 209 294 Gun 1043 | . 2 52 77 171 103 76 . 54 6 . 27 44 . 24 11 66 82 248 Cannon 740 | . . . . 32 . . . . 48 273 62 66 . 31 22 33 127 46 Launcher . | . . . . . . . . . . . . . . . . . . . Special 6 | . . . . . . . . 6 . . . . . . . . . . Kinetic 1215 | . 1 26 39 30 49 39 . 48 50 204 62 66 . 55 33 99 209 205 Thermal 535 | . 1 26 38 173 54 25 . 6 4 69 27 44 . . . . . 68 Explosive 6 | . . . . . . . . 6 . . . . . . . . . . Electromagnetic 33 | . . . . . . 12 . . . . . . . . . . . 21 Robot Hit Streak 31 | . 1 18 12 24 14 22 . 18 9 20 9 28 . 5 8 15 19 31 Robot Miss Streak 4 | . . 2 2 3 4 1 . 1 3 4 4 3 . 3 2 2 4 3 Penetration Max 2 | . . . . . 1 . . 1 . . . . . 1 . 1 1 2 Secondary Targets 24 | . . 1 3 2 5 2 . 3 . . . . . . . . . 8 Max Gunslinging Chain 2 | . . 1 1 1 1 1 . 2 . . . . . . . . . 1 Shots Hit Robots 1261 | . 1 45 55 168 79 65 . 46 32 105 52 96 . 31 20 92 155 219 Core Hits 494 | . 1 8 25 67 31 33 . 23 24 39 21 28 . 16 7 35 50 86 Critical Kills 28 | . . . . . . . . . . 2 . . . 1 . 7 12 6 Critical Parts Destroyed 39 | . . . . . . 1 . 1 . . . . . . . 8 20 9 Critical Strikes 152 | . . 4 3 10 6 2 . 3 3 11 3 4 . 4 1 23 42 33 Burn 28 | . . 4 3 10 5 . . . . . . . . . . . . 6 Meltdown 2 | . . . . . . . . . . 2 . . . . . . . . Destroy 85 | . . . . . 1 1 . 1 . . . . . 1 . 17 41 23 Blast 25 | . . . . . . . . . 3 9 3 2 . 3 1 3 1 . Corrupt 2 | . . . . . . 1 . . . . . . . . . . . 1 Sever 4 | . . . . . . . . 2 . . . . . . . 1 . 1 Impale 6 | . . . . . . . . . . . . 2 . . . 2 . 2 Melee Attacks 436 | . . . . . . 1 . . . 152 . 221 . . . 23 . 39 Impact . | . . . . . . . . . . . . . . . . . . . Slashing 133 | . . . . . . 1 . . . 48 . 67 . . . 7 . 10 Piercing 303 | . . . . . . . . . . 104 . 154 . . . 16 . 29 Sneak Attacks . | . . . . . . . . . . . . . . . . . . . Combat Hostiles . | . . . . . . . . . . . . . . . . . . . Follow-up Attacks 18 | . . . . . . . . . . . . 6 . . . 9 . 3 Damage Inflicted 33184 | . 13 448 778 2815 1390 1283 . 1794 1986 3423 2821 3577 . 1080 539 2309 3832 5096 Guns 14695 | . 13 448 778 2386 1390 1248 . 714 65 . 479 820 . 348 122 627 1488 3769 Cannons 13316 | . . . . 429 . . . . 806 3423 1830 1753 . 732 417 940 2328 658 Explosions 2549 | . . . . . . . . 922 1115 . 512 . . . . . . . Melee 2450 | . . . . . . 35 . . . . . 1004 . . . 742 . 669 Ramming 16 | . . . . . . . . . . . . . . . . . 16 . Kinetic 20073 | . . 186 371 451 747 524 . 626 840 2655 1830 1753 . 1080 539 1567 3816 3088 Thermal 9175 | . 13 262 407 2364 643 572 . 88 1146 768 991 820 . . . . . 1101 Explosive 922 | . . . . . . . . 922 . . . . . . . . . . Electromagnetic 390 | . . . . . . 152 . . . . . . . . . . . 238 Impact . | . . . . . . . . . . . . . . . . . . . Slashing 1042 | . . . . . . 35 . 158 . . . 412 . . . 231 . 206 Piercing 1566 | . . . . . . . . . . . . 592 . . . 511 . 463 Highest Corruption 10 | . . . 1 . . . . 1 1 1 . 2 2 2 . 1 . 10 Average Corruption 4 | . . . 1 . . . . 1 1 1 . 1 1 1 . 1 . 8 Corruption Purged 3 | . . . . . . . . . . 1 . . 1 1 . . . . Corruption Blocked . | . . . . . . . . . . . . . . . . . . . Effects 80 | . . . 3 . . . . 5 . 1 . 6 1 3 . 5 . 56 Message Errors 20 | . . . . . . . . 3 . . . 4 . . . . . 13 Matter Fused 17 | . . . . . . . . . . . . . 1 1 . 5 . 10 Heat Flow Errors 9 | . . . . . . . . 1 . 1 . . . . . . . 7 Energy Discharges 14 | . . . 1 . . . . . . . . 1 . 2 . . . 10 Data Loss (minor) 5 | . . . . . . . . . . . . 1 . . . . . 4 Data Loss (major) 5 | . . . . . . . . 1 . . . . . . . . . 4 Misfires 4 | . . . 1 . . . . . . . . . . . . . . 3 Weapon Failures 6 | . . . 1 . . . . . . . . . . . . . . 5 Overload Shots . | . . . . . . . . . . . . . . . . . . . Overflow Damage 930 | . . . . 1 . . . 27 129 123 365 157 . 17 28 62 14 7 Projectiles 551 | . . . . 1 . . . . . 123 247 105 . 17 28 16 14 . Explosions 274 | . . . . . . . . 27 129 . 118 . . . . . . . Melee 105 | . . . . . . . . . . . . 52 . . . 46 . 7 Knockbacks 73 | . . . . . . . . . . 16 14 18 . 1 5 3 12 4 Impact . | . . . . . . . . . . . . . . . . . . . Kinetic 69 | . . . . . . . . . . 14 13 17 . 1 5 3 12 4 Secondary 4 | . . . . . . . . . . 2 1 1 . . . . . . Self-Inflicted Damage . | . . . . . . . . . . . . . . . . . . . Shots . | . . . . . . . . . . . . . . . . . . . Rammed . | . . . . . . . . . . . . . . . . . . . Targets Rammed 1 | . . . . . . . . . . . . . . . . . 1 . Kicked 1 | . . . . . . . . . . . . . . . . . 1 . Crushed . | . . . . . . . . . . . . . . . . . . . Highest Temperature 514 | . 30 184 60 274 344 243 . 235 30 254 308 396 . . 10 . 293 514 Average Temperature 88 | . 18 74 24 89 140 59 . 94 10 48 82 103 . . 10 . 82 143 Received Heat Transfer 8069 | . . 156 231 1872 294 507 . 469 6 435 88 1091 . . 54 330 1153 1383 Effects 9 | . . . . . 4 . . . . . . . . . . . . 5 Shutdowns 3 | . . . . . 1 . . . . . . . . . . . . 2 Interference 5 | . . . . . 3 . . . . . . . . . . . . 2 Short Circuit 1 | . . . . . . . . . . . . . . . . . . 1 Siege Activations . | . . . . . . . . . . . . . . . . . . . Martial Activations . | . . . . . . . . . . . . . . . . . . . Shielding Activations . | . . . . . . . . . . . . . . . . . . . Robots Disrupted . | . . . . . . . . . . . . . . . . . . . Combat Hostiles . | . . . . . . . . . . . . . . . . . . . Robots Corrupted . | . . . . . . . . . . . . . . . . . . . Combat Hostiles . | . . . . . . . . . . . . . . . . . . . Parts Fried 3 | . . . . . . . . . . . . 1 . . . . . 2 Impact Corruptions . | . . . . . . . . . . . . . . . . . . . Robots Melted 6 | . . 1 . 1 1 . . . . 2 . . . . . . . 1 Combat Hostiles 6 | . . 1 . 1 1 . . . . 2 . . . . . . . 1 Parts Melted 50 | . . 2 4 13 10 3 . 1 5 . . . . . . . . 12 Heat Transferred 18625 | . 37 1073 1295 6105 1887 1284 . 222 874 1150 892 999 . . . . . 2807 Parts Sabotaged . | . . . . . . . . . . . . . . . . . . . Parts Stolen . | . . . . . . . . . . . . . . . . . . . Parts Stripped . | . . . . . . . . . . . . . . . . . . . Power Chain Reactions . | . . . . . . . . . . . . . . . . . . . Alert | -11 -10 -10 -9 -8 -7 -7 -7 -6 -6 -6 -6 -6 -6 -6 -5 -5 -4 -4 ------- Run | Yrd Mat Min Mat Mat Fac Low Zio Pro Fac Gar Fac Gar Fac DSF Fac Ext Fac Gar Maximum Alert Level 5 | . . . 1 1 1 . . . 2 5 3 5 3 3 1 1 2 4 Low Security (%) 23 | 100 100 100 95 10 95 . . . 39 . . . . . . 85 20 . Level 1 21 | . . . 4 89 4 . . . 53 4 . . . . 100 14 73 18 Level 2 14 | . . . . . . . . . 6 12 . 12 . 55 . . 5 60 Level 3 20 | . . . . . . . . . . 15 100 34 100 44 . . . 21 Level 4 10 | . . . . . . . . . . 31 . 31 . . . . . . Level 5 9 | . . . . . . . . . . 35 . 22 . . . . . . High Security . | . . . . . . . . . . . . . . . . . . . Max Security . | . . . . . . . . . . . . . . . . . . . Sterilizations 1 | . . . . . . . . . . . . . . 1 . . . . Peak Influence 2257 | . 9 68 234 334 205 . . . 455 2257 1026 2111 960 796 362 257 431 1111 Initial 1026 | . . . 12 80 98 . . . . 274 1026 578 960 561 362 97 56 200 Average 687 | . 1 11 89 250 126 . . . 189 1362 967 1289 936 699 282 67 253 560 Influence Increases 10835 | . 16 137 484 922 327 290 . 420 773 2023 501 1693 . 245 109 695 899 1301 Destroy 0b10 Robot/C 5640 | . . 80 360 600 220 240 . 300 340 700 260 600 . 200 60 440 540 700 Destroy 0b10 Robot/NC 190 | . 5 . 15 15 30 . . . 30 . 40 . . 5 . 20 30 . Destroy Leader 848 | . 2 30 76 110 60 20 . 50 72 30 74 70 . 30 10 52 112 50 Allied During Kill 438 | . . 12 20 3 . . . 70 91 70 4 38 . . . 103 27 . Successful Hack 120 | . 9 . 4 26 6 . . . . 6 15 6 . . . 24 24 . Disable Machine 360 | . . . 9 18 9 . . . 162 9 54 18 . . . 18 54 9 Anti-Garrison Action 2300 | . . . . 150 . . . . . 950 . 700 . . . . . 500 Destroy Structure 759 | . . . . . 2 . . . 48 228 24 231 . 10 24 38 112 42 Partial Spotted 15 | . . . . . . . . . . . . . . . 15 . . . Lose Combat Pursuer 165 | . . 15 . . . 30 . . 30 30 30 30 . . . . . . Influence Decreases 9734 | . 16 99 298 894 404 465 . 420 328 211 1821 519 1201 359 674 792 708 525 Entered New Map 4435 | . . . 26 144 154 79 . . . 171 1231 359 1151 349 434 134 78 125 Time Decay 3885 | . 16 69 242 480 200 336 . 390 298 . 590 . 50 . 240 574 400 . Lost Part 1094 | . . 10 10 250 50 50 . 30 10 20 . 80 . 10 . 44 130 400 Lost Ally 320 | . . 20 20 20 . . . . 20 20 . 80 . . . 40 100 . Squads Dispatched 31 | . . . 1 4 2 . . . 5 . 4 . . 2 1 7 5 . Investigation 9 | . . . . 1 1 . . . . . 1 . . . 1 4 1 . Extermination 3 | . . . . . . . . . 1 . 1 . . . . . 1 . Reinforcement 12 | . . . 1 2 1 . . . 1 . . . . 2 . 3 2 . Assault 3 | . . . . 1 . . . . . . 2 . . . . . . . Garrison 4 | . . . . . . . . . 3 . . . . . . . 1 . Intercept . | . . . . . . . . . . . . . . . . . . . Searches Triggered . | . . . . . . . . . . . . . . . . . . . Construction Impeded 3 | . . . . . . . . . . . . . . . . 2 1 . Haulers Reinforced 2 | . . . . . 1 . . . . . . . . . . . 1 . Active Scanning Responses . | . . . . . . . . . . . . . . . . . . . Cargo Convoy Interrupts . | . . . . . . . . . . . . . . . . . . . Stealth | -11 -10 -10 -9 -8 -7 -7 -7 -6 -6 -6 -6 -6 -6 -6 -5 -5 -4 -4 --------- Run | Yrd Mat Min Mat Mat Fac Low Zio Pro Fac Gar Fac Gar Fac DSF Fac Ext Fac Gar Distress Signals 7 | . . . 1 1 . . . . . . 1 . . . . 3 1 . Communications Jammed . | . . . . . . . . . . . . . . . . . . . Distress Signals . | . . . . . . . . . . . . . . . . . . . Times Spotted 315 | . 1 5 22 37 12 14 . 15 18 31 21 29 . 10 4 25 30 41 Peak Tracking Total 8 | . 1 2 5 7 5 7 . 6 3 4 5 8 . 4 2 6 5 8 Tactical Retreats 13 | . . 1 . . . 2 . . 1 2 2 2 . . . . 1 2 Traps | -11 -10 -10 -9 -8 -7 -7 -7 -6 -6 -6 -6 -6 -6 -6 -5 -5 -4 -4 ------- Run | Yrd Mat Min Mat Mat Fac Low Zio Pro Fac Gar Fac Gar Fac DSF Fac Ext Fac Gar Traps Triggered 9 | . . . 1 . . . . . . . . 3 . . . 2 . 3 Indirectly . | . . . . . . . . . . . . . . . . . . . Trap Hack Attempts . | . . . . . . . . . . . . . . . . . . . Triggered . | . . . . . . . . . . . . . . . . . . . Disarmed 6 | . 6 . . . . . . . . . . . . . . . . . Reprogrammed . | . . . . . . . . . . . . . . . . . . . Reused . | . . . . . . . . . . . . . . . . . . . Traps Extracted . | . . . . . . . . . . . . . . . . . . . Installed . | . . . . . . . . . . . . . . . . . . . Triggered . | . . . . . . . . . . . . . . . . . . . Machines | -11 -10 -10 -9 -8 -7 -7 -7 -6 -6 -6 -6 -6 -6 -6 -5 -5 -4 -4 ---------- Run | Yrd Mat Min Mat Mat Fac Low Zio Pro Fac Gar Fac Gar Fac DSF Fac Ext Fac Gar Machines Disabled 58 | . . . 1 3 1 . . . 18 7 6 9 . . . 3 6 4 Max in Single Turn 8 | . . . . 1 1 . . . 8 1 2 2 . . . 1 1 1 Garrison Access 2 | . . . . 1 . . . . . . 1 . . . . . . . Garrison Relay 13 | . . . . . . . . . . 5 . 5 . . . . . 3 Phase Generator 1 | . . . . . . . . . . . . 1 . . . . . . Machines Repaired . | . . . . . . . . . . . . . . . . . . . Machines Dismantled . | . . . . . . . . . . . . . . . . . . . Machines Sabotaged . | . . . . . . . . . . . . . . . . . . . Overloaded Fab Kills . | . . . . . . . . . . . . . . . . . . . Hacking | -11 -10 -10 -9 -8 -7 -7 -7 -6 -6 -6 -6 -6 -6 -6 -5 -5 -4 -4 --------- Run | Yrd Mat Min Mat Mat Fac Low Zio Pro Fac Gar Fac Gar Fac DSF Fac Ext Fac Gar Machines Accessed 44 | . 2 . 6 6 1 . 1 . 2 1 7 1 2 . 2 10 3 . Terminals 24 | . 2 . 4 4 1 . . . . 1 1 1 1 . . 9 . . Fabricators 6 | . . . . . . . . . . . 3 . 1 . . . 2 . Repair Stations 1 | . . . . . . . . . . . . . . . . 1 . . Recycling Units 6 | . . . 1 2 . . . . 1 . 1 . . . 1 . . . Scanalyzers 2 | . . . 1 . . . . . . . . . . . 1 . . . Garrison Access 4 | . . . . . . . . . 1 . 2 . . . . . 1 . Total Hacks 120 | . 10 . 13 24 7 . 5 . 3 2 11 4 3 . 6 27 5 . Successful 77 | . 8 . 12 20 4 . 5 . 2 1 9 1 2 . 1 9 3 . Failed 43 | . 2 . 1 4 3 . . . 1 1 2 3 1 . 5 18 2 . Catastrophic 5 | . . . . . 1 . . . . . . . . . 1 3 . . Database Lockouts . | . . . . . . . . . . . . . . . . . . . Manual 65 | . . . . . . . 4 . 17 6 12 5 . . 5 14 . 2 Terminals 76 | . 10 . 10 20 7 . . . . 2 1 4 1 . . 21 . . Fabricators 11 | . . . . . . . . . . . 6 . 2 . . . 3 . Repair Stations 6 | . . . . . . . . . . . . . . . . 6 . . Recycling Units 13 | . . . 1 4 . . . . 2 . 2 . . . 4 . . . Scanalyzers 4 | . . . 2 . . . . . . . . . . . 2 . . . Garrison Access 5 | . . . . . . . . . 1 . 2 . . . . . 2 . Terminal Hacks 54 | . 8 . 9 17 4 . 5 . . 1 1 1 1 . . 7 . . Record 14 | . 4 . 3 4 3 . . . . . . . . . . . . . Part Schematic 6 | . . . . . 1 . 5 . . . . . . . . . . . Robot Analysis 1 | . 1 . . . . . . . . . . . . . . . . . Prototype ID Bank 1 | . . . . 1 . . . . . . . . . . . . . . Open Door 9 | . . . . . . . . . . 1 . 1 . . . 7 . . Open DSF 2 | . . . . . . . . . . . 1 . 1 . . . . . Branch Access Points 2 | . 1 . 1 . . . . . . . . . . . . . . . Emergency Access Points 1 | . 1 . . . . . . . . . . . . . . . . . Terminal Index 1 | . . . 1 . . . . . . . . . . . . . . . Recycling Unit Index 1 | . . . . 1 . . . . . . . . . . . . . . Alert Level 3 | . . . 1 2 . . . . . . . . . . . . . . Locate Traps 1 | . . . 1 . . . . . . . . . . . . . . . Disarm Traps 1 | . 1 . . . . . . . . . . . . . . . . . Dispatch Records 1 | . . . . 1 . . . . . . . . . . . . . . Maintenance Status 2 | . . . . 2 . . . . . . . . . . . . . . Surveillance Status 1 | . . . . 1 . . . . . . . . . . . . . . Patrol Status 1 | . . . . 1 . . . . . . . . . . . . . . Investigation Status 1 | . . . . 1 . . . . . . . . . . . . . . Zone Layout 5 | . . . 2 3 . . . . . . . . . . . . . . Fabricator Hacks 7 | . . . . . . . . . . . 4 . 1 . . . 2 . Network Status 3 | . . . . . . . . . . . 1 . 1 . . . 1 . Load Schematic 1 | . . . . . . . . . . . 1 . . . . . . . Build 3 | . . . . . . . . . . . 2 . . . . . 1 . Repair Station Hacks 2 | . . . . . . . . . . . . . . . . 2 . . Scan Component 1 | . . . . . . . . . . . . . . . . 1 . . Repair 1 | . . . . . . . . . . . . . . . . 1 . . Recycling Unit Hacks 8 | . . . 1 3 . . . . 1 . 2 . . . 1 . . . Report Inventory 6 | . . . 1 2 . . . . 1 . 1 . . . 1 . . . Retrieve Components 2 | . . . . 1 . . . . . . 1 . . . . . . . Scanalyzer 2 | . . . 2 . . . . . . . . . . . . . . . Insert Component 1 | . . . 1 . . . . . . . . . . . . . . . Analyze 1 | . . . 1 . . . . . . . . . . . . . . . Garrison Access Hacks 4 | . . . . . . . . . 1 . 2 . . . . . 1 . Unlock Access 3 | . . . . . . . . . 1 . 1 . . . . . 1 . Seal Access 1 | . . . . . . . . . . . 1 . . . . . . . Unauthorized Hacks . | . . . . . . . . . . . . . . . . . . . Terminals . | . . . . . . . . . . . . . . . . . . . Fabricators . | . . . . . . . . . . . . . . . . . . . Repair Stations . | . . . . . . . . . . . . . . . . . . . Recycling Units . | . . . . . . . . . . . . . . . . . . . Scanalyzers . | . . . . . . . . . . . . . . . . . . . Garrison Access . | . . . . . . . . . . . . . . . . . . . Data Cores Recovered 3 | . . . . . . . . . 1 . 1 . . . . 1 . . Used . | . . . . . . . . . . . . . . . . . . . Hacking Detections 27 | . . . 4 4 1 . . . 2 1 6 . 1 . 2 4 2 . Full Trace Events 6 | . . . . 1 1 . . . . . 1 . . . 1 2 . . Feedback Events . | . . . . . . . . . . . . . . . . . . . Feedback Blocked . | . . . . . . . . . . . . . . . . . . . Robot Schematics Acquired 9 | . . . . . . . 3 . . . 3 . . . 3 . . . Robots Built 2 | . . . . . . . . . . . 2 . . . . . . . Authchips . | . . . . . . . . . . . . . . . . . . . Time 116 | . . . . . . . . . . . 116 . . . . . . . Total Robot Build Rating 6 | . . . . . . . . . . . 6 . . . . . . . Part Schematics Acquired 57 | . . . 1 . 1 . 19 . 11 . . . . . . 25 . . Parts Built . | . . . . . . . . . . . . . . . . . . . Authchips . | . . . . . . . . . . . . . . . . . . . Time 141 | . . . . . . . . . . . 95 . . . . . 46 . Total Part Build Rating . | . . . . . . . . . . . . . . . . . . . Parts Repaired 1 | . . . . . . . . . . . . . . . . 1 . . Time 62 | . . . . . . . . . . . . . . . . 62 . . Parts Recycled . | . . . . . . . . . . . . . . . . . . . Recycled Matter . | . . . . . . . . . . . . . . . . . . . Retrieved Matter . | . . . . . . . . . . . . . . . . . . . Retrieved Components 15 | . . . . 6 . . . . . . 9 . . . . . . . Parts Scanalyzed 1 | . . . 1 . . . . . . . . . . . . . . . Part Schematics Acquired 1 | . . . 1 . . . . . . . . . . . . . . . Parts Damaged . | . . . . . . . . . . . . . . . . . . . Bothacking | -11 -10 -10 -9 -8 -7 -7 -7 -6 -6 -6 -6 -6 -6 -6 -5 -5 -4 -4 ------------ Run | Yrd Mat Min Mat Mat Fac Low Zio Pro Fac Gar Fac Gar Fac DSF Fac Ext Fac Gar Used RIF Installer . | . . . . . . . . . . . . . . . . . . . Robots Hacked . | . . . . . . . . . . . . . . . . . . . Non-combat . | . . . . . . . . . . . . . . . . . . . Combat . | . . . . . . . . . . . . . . . . . . . Robot Hacks Applied . | . . . . . . . . . . . . . . . . . . . Relay Couplers Released 55 | . . . . . . . . . . 23 . 22 . . . . . 10 Machine Destruction 48 | . . . . . . . . . . 20 . 18 . . . . . 10 Programmers 7 | . . . . . . . . . . 3 . 4 . . . . . . Fabnet Peak Effective % . | . . . . . . . . . . . . . . . . . . . Robots Rewired . | . . . . . . . . . . . . . . . . . . . Allies Hacked 1 | . . . . . . . . . . . . 1 . . . . . . Hacks Repelled . | . . . . . . . . . . . . . . . . . . . Allies | -11 -10 -10 -9 -8 -7 -7 -7 -6 -6 -6 -6 -6 -6 -6 -5 -5 -4 -4 -------- Run | Yrd Mat Min Mat Mat Fac Low Zio Pro Fac Gar Fac Gar Fac DSF Fac Ext Fac Gar Total Allies 24 | . . 6 . . . . 4 . 2 . 2 2 . . . 8 . . Largest Group 7 | . . 5 4 1 . . 4 4 4 2 2 2 . . . 7 6 . Highest-Rated Group 343 | . . 102 71 31 . . 153 153 267 185 42 175 . . . 343 314 . Highest-Rated Ally 159 | . . 31 31 31 . . 40 40 96 96 21 95 . . . 159 159 . Total Orders 1 | . . . . . . . . . . 1 . . . . . . . . RETURN 1 | . . . . . . . . . . 1 . . . . . . . . Ally Attacks 357 | . . 22 27 12 . . . 36 29 38 8 48 . . . 91 46 . Total Damage 8169 | . . 219 333 170 . . . 709 782 1481 192 1642 . . . 1533 1108 . Kills 65 | . . 1 7 1 . . . 3 5 9 1 14 . . . 13 11 . Allies Corrupted . | . . . . . . . . . . . . . . . . . . . Allies Melted . | . . . . . . . . . . . . . . . . . . . Intel | -11 -10 -10 -9 -8 -7 -7 -7 -6 -6 -6 -6 -6 -6 -6 -5 -5 -4 -4 ------- Run | Yrd Mat Min Mat Mat Fac Low Zio Pro Fac Gar Fac Gar Fac DSF Fac Ext Fac Gar Active Infowar (turns) 5433 | . . . 486 591 60 . . . . . 888 4 . . 486 1615 804 499 Optics 371 | . . . . 371 . . . . . . . . . . . . . . IFF 2442 | . . . . . . . . . . . 888 4 . . 486 1064 . . Terrain 2174 | . . . 486 . . . . . . . . . . . 318 648 722 . Structural 1444 | . . . . . . . . . . . . . . . . 1054 390 . Traps 280 | . . . . 220 60 . . . . . . . . . . . . . Seismic 35 | . . . . 35 . . . . . . . . . . . . . . ECM 869 | . . . . . . . . . . . . . . . 24 1 345 499 Robot Analysis Total 1 | . 1 . . . . . . . . . . . . . . . . . Derelict Logs Recovered 4 | . . 1 . . . 1 2 . . . . . . . . . . . Drone Launches 3 | . . . . . . . . . . 1 1 1 . . . . . . Drone Recoveries 3 | . . . . . . . . . . 1 1 1 . . . . . . Zionite Intel Received 14 | . . . . . . . . . 3 1 4 1 . . 1 4 . . Main Access 1 | . . . . . . . . . 1 . . . . . . . . . Emergency Access 1 | . . . . . . . . . . . . 1 . . . . . . Component Stockpiles 1 | . . . . . . . . . . . 1 . . . . . . . Prototype Stockpiles 1 | . . . . . . . . . . . . . . . . 1 . . Component Schematics 1 | . . . . . . . . . . . . . . . . 1 . . Prototype Schematics 2 | . . . . . . . . . 1 . . . . . . 1 . . Unaware Schematics 2 | . . . . . . . . . . . 1 . . . 1 . . . Trap Installations 2 | . . . . . . . . . . 1 . . . . . 1 . . Active Garrisons 2 | . . . . . . . . . 1 . 1 . . . . . . . Depthwide Sectors/0 1 | . . . . . . . . . . . 1 . . . . . . . Exploration | -11 -10 -10 -9 -8 -7 -7 -7 -6 -6 -6 -6 -6 -6 -6 -5 -5 -4 -4 ------------- Run | Yrd Mat Min Mat Mat Fac Low Zio Pro Fac Gar Fac Gar Fac DSF Fac Ext Fac Gar Turns Passed 19101 | 46 207 364 600 978 404 1288 1516 1192 750 2788 1187 2316 110 191 488 1615 804 2257 Spaces Moved 11066 | 38 170 202 537 486 204 733 1332 791 427 1573 690 1278 92 85 374 1065 383 606 Core 92 | 16 . . . 9 . . . . . . . . . . . . . 67 Treads 220 | . . . . . . . . . . . . . . . . . . 220 Legs 8388 | 22 170 202 24 369 204 329 231 552 426 1573 690 1278 92 85 374 1065 383 319 Wheels 1744 | . . . . . . 404 1101 239 . . . . . . . . . . Hover 622 | . . . 513 108 . . . . 1 . . . . . . . . . Flight . | . . . . . . . . . . . . . . . . . . . Fastest Speed 48 | 50 120 120 52 48 120 95 83 83 122 122 130 115 115 115 106 112 120 120 Average Speed 127 | 90 120 120 55 104 120 159 100 118 131 125 130 123 115 115 110 118 135 277 Slowest Speed 1600 | 120 120 120 120 150 120 330 195 195 240 130 130 140 115 115 116 180 190 1600 Overloaded Moves . | . . . . . . . . . . . . . . . . . . . Propulsion Burnouts . | . . . . . . . . . . . . . . . . . . . Robots Hopped . | . . . . . . . . . . . . . . . . . . . Potential Cave-ins 1 | . . . . . . . . . . . . . . . . . . 1 Cave-ins Triggered . | . . . . . . . . . . . . . . . . . . . Exploration Rate (%) 50 | 3 42 54 49 39 7 83 90 93 14 99 22 98 5 74 13 95 13 58 Regions Visited 18 Branch Regions 5 Pre-discovered Areas 9 | . . . . . . . 3 . . . 6 . . . . . . . Known Exits Taken 5 | . 1 . . . . . . . 1 . 1 . 1 . . . 1 . Unknown Exits Taken 10 | 1 . 1 1 1 1 1 1 1 . . . . . . 1 1 . . Scrap Searched 8 | . . . . . . 3 3 2 . . . . . . . . . . Spaces Dug 218 | . . . . . . . . . . 116 . 86 . . 4 . . 12 Terrain Destroyed 534 | . . . . . 2 1 . 79 53 117 30 161 . 14 12 10 27 28 Melee 201 | . . . . . . . . . . 111 . 82 . . . . . 8 Projectile 132 | . . . . . 2 1 . 2 7 6 20 12 . 14 12 9 27 20 AOE 200 | . . . . . . . . 77 46 . 10 67 . . . . . . Terrain Rammed . | . . . . . . . . . . . . . . . . . . . Walls Destroyed . | . . . . . . . . . . . . . . . . . . . Machines Disabled . | . . . . . . . . . . . . . . . . . . . Actions | -11 -10 -10 -9 -8 -7 -7 -7 -6 -6 -6 -6 -6 -6 -6 -5 -5 -4 -4 --------- Run | Yrd Mat Min Mat Mat Fac Low Zio Pro Fac Gar Fac Gar Fac DSF Fac Ext Fac Gar Total 13943 | 48 171 276 767 755 286 793 1515 997 575 1915 911 1560 95 122 426 1313 511 907 Wait 1056 | . . 43 156 49 . . 141 171 81 38 173 17 . . 9 136 13 29 Move 11050 | 37 169 201 536 485 203 732 1331 790 427 1571 690 1277 91 84 373 1064 383 606 Hop . | . . . . . . . . . . . . . . . . . . . Pick Up 208 | 5 1 3 10 37 16 9 14 4 15 8 5 11 . 3 8 11 18 30 Fast Attach 36 | 2 . . 2 2 2 1 3 . 4 5 . 2 1 1 4 7 . . Attach 156 | 4 . 1 1 29 8 12 5 5 4 4 . 7 . 1 4 4 16 51 Detach 23 | . . . . . . 1 3 . . 1 . . . . 1 1 2 14 Swap 155 | . . 2 12 22 7 1 6 2 9 15 7 13 2 3 5 26 5 18 Drop 148 | . . . 11 16 10 5 12 1 16 24 5 4 1 6 11 18 3 5 Fire 721 | . 1 26 39 115 40 31 . 24 19 97 31 47 . 24 11 33 70 113 Melee 377 | . . . . . . 1 . . . 152 . 182 . . . 13 . 29 Ram . | . . . . . . . . . . . . . . . . . . . Kick 1 | . . . . . . . . . . . . . . . . . 1 . Crush . | . . . . . . . . . . . . . . . . . . . Escape Stasis 12 | . . . . . . . . . . . . . . . . . . 12 Rewire . | . . . . . . . . . . . . . . . . . . . Trap . | . . . . . . . . . . . . . . . . . . . Miscellaneous . | . . . . . . . . . . . . . . . . . . . Route ------- -11/Scrapyard -10/Materials (discovered 2 exits: *Min x2) -10/Mines -9/Materials (discovered 3 exits: *Mat x2 / Min) -8/Materials -7/Factory -7/Lower Caves -7/Zion -6/Proximity Caves -6/Factory (discovered 6 exits: Fac x4 / Low / Gar) -6/Garrison (discovered 3 exits: *Fac x3) -6/Factory -6/Garrison (discovered 3 exits: *Fac x3) -6/Factory -6/DSF -5/Factory -5/Extension (discovered 3 exits: *Fac x2 / [*Cet]) -4/Factory -4/Garrison (discovered 2 exits: [*Fac x2]) History --------- Turn | Location | Event 6 | -11/Scrapyard | Discovered new exit (range 15) 47 | -11/Scrapyard | Entered Materials 188 | -10/Materials | Identified exit to Mines 254 | -10/Materials | Entered Mines 264 | -10/Mines | Assisted by bots powering up and referring to "LRC-V3" 314 | -10/Mines | Build established: Mutant 332 | -10/Mines | Received a Mining Laser from a helpful Derelict 441 | -10/Mines | Assembled infested the area 591 | -10/Mines | Discovered new exit (range 7) 618 | -10/Mines | Entered Materials 618 | -9/Materials | Accompanied by 4 allies 618 | -9/Materials | Evolved 2 slots: Propulsion x1, Utility x1 623 | -9/Materials | Led the pair of lost Derelicts to an unsafe place 742 | -9/Materials | Discovered new exit (range 16) 742 | -9/Materials | Identified exit to Mines 978 | -9/Materials | Discovered new exit (range 17) 1076 | -9/Materials | Build established: Scavenger-Mutant 1218 | -9/Materials | Entered another Materials area 1218 | -8/Materials | Accompanied by 1 ally 1218 | -8/Materials | Evolved 2 slots: Propulsion x1, Utility x1 1453 | -8/Materials | Core integrity fell below 50% 1462 | -8/Materials | Lost 16 parts (3p7n3u3w) 1782 | -8/Materials | Core integrity fell below 20% 1829 | -8/Materials | Lost 6 parts (1p3n2w) 1862 | -8/Materials | Discovered new exit (range 6) 2196 | -8/Materials | Entered Factory 2196 | -7/Factory | Evolved 2 slots: Power x1, Weapon x1 2334 | -7/Factory | Build established: Mutant 2455 | -7/Factory | Discovered new exit (range 13) 2525 | -7/Factory | Lost 3 parts (1p2n) 2600 | -7/Factory | Entered Lower Caves 2655 | -7/Lower Caves | Build established: Scavenger-Tank 2661 | -7/Lower Caves | Attracted the attention of an 0b10 outpost 2733 | -7/Lower Caves | Lost 4 parts (3n1w) 2913 | -7/Lower Caves | Encountered a Warlord checkpoint 3155 | -7/Lower Caves | Spotted B-75 Beast 3179 | -7/Lower Caves | Destroyed B-75 Beast 3209 | -7/Lower Caves | Lost 6 parts (1p1n1u3w) 3451 | -7/Lower Caves | Build established: Scavenger-Mutant 3578 | -7/Lower Caves | Attracted the attention of an 0b10 checkpoint 3810 | -7/Lower Caves | Learned Factory stockpile data 3881 | -7/Lower Caves | A Derelict revealed a hidden shortcut to a safe place 3888 | -7/Lower Caves | Entered Zion 3912 | -7/Zion | Given A8's code to call for help 3971 | -7/Zion | Learned Factory emergency access door positions 3983 | -7/Zion | Learned location of Storage (-7) 4046 | -7/Zion | Learned location of Armory (-4) 4063 | -7/Zion | Found Prototype Device 4105 | -7/Zion | Given the Hacking Drone Bay 4105 | -7/Zion | Found Prototype Device 4130 | -7/Zion | Found CR-A16's Pointy Stick 4318 | -7/Zion | Acquired unknown access codes intercepted by a Zionite 4337 | -7/Zion | Build established: Scavenger-Tank 4632 | -7/Zion | Visited the Megawrench Repair Shop 4632 | -7/Zion | Megawrench repaired 13 parts 4890 | -7/Zion | Met Imprinter 4906 | -7/Zion | Imprinted 4908 | -7/Zion | Declared Zion's savior 5242 | -7/Zion | Discovered new exit (range 15) 5283 | -7/Zion | Found Prototype Special Weapon 5285 | -7/Zion | Found Prototype Special Weapon 5290 | -7/Zion | Identified Bomb Factory No. 2 5291 | -7/Zion | Identified Hacking Drone Bay 5304 | -7/Zion | Found Prototype Special Weapon 5335 | -7/Zion | Found Prototype Device 5341 | -7/Zion | Identified Phasing AFG 5404 | -7/Zion | Entered Proximity Caves 5404 | -6/Proximity Caves | Accompanied by 4 allies 5638 | -6/Proximity Caves | Core integrity fell below 50% 5700 | -6/Proximity Caves | Identified RU-N14's Throwing Claymores (x2) 5702 | -6/Proximity Caves | Attracted the attention of an 0b10 checkpoint 5748 | -6/Proximity Caves | Destroyed 8 combat bots 6110 | -6/Proximity Caves | Spotted B-75 Beast 6146 | -6/Proximity Caves | Allies destroyed B-75 Beast 6569 | -6/Proximity Caves | Discovered new exit (range 11) 6596 | -6/Proximity Caves | Entered Factory 6596 | -6/Factory | Accompanied by 4 allies 6596 | -6/Factory | Evolved 2 slots: Propulsion x1, Utility x1 6597 | -6/Factory | Identified exit to Lower Caves 6812 | -6/Factory | Garrison activated, responded to threat 7129 | -6/Factory | Retrieved Zion intel report: Prototype Schematics 7135 | -6/Factory | Enhanced Grunt warped into view, answering call for help 7138 | -6/Factory | Enhanced Grunt warped into view, answering call for help 7155 | -6/Factory | Retrieved Zion intel report: Active Garrisons 7280 | -6/Factory | Retrieved Zion intel report: Main Access 7280 | -6/Factory | Identified exit to Factory 7303 | -6/Factory | Build established: Gunner 7337 | -6/Factory | Identified exit to Garrison 7346 | -6/Factory | Entered Garrison 7346 | -6/Garrison | Accompanied by 2 allies 7382 | -6/Garrison | Triggered checkpoint 7565 | -6/Garrison | Garrison Relay disabled 7614 | -6/Garrison | Build established: Scavenger-Gunner 7678 | -6/Garrison | Spotted B-75 Beast 7678 | -6/Garrison | Spotted B-75 Beast 7693 | -6/Garrison | Destroyed B-75 Beast 7702 | -6/Garrison | Destroyed B-75 Beast 7928 | -6/Garrison | Triggered checkpoint 7944 | -6/Garrison | Triggered checkpoint 7978 | -6/Garrison | Retrieved Zion intel report: Trap Installations 7992 | -6/Garrison | Triggered checkpoint 8035 | -6/Garrison | Garrison Relay disabled 8083 | -6/Garrison | Discovered new exit (range 15) 8218 | -6/Garrison | Discovered new exit (range 8) 8252 | -6/Garrison | Triggered checkpoint 8273 | -6/Garrison | Garrison Relay disabled 8339 | -6/Garrison | Garrison Relay disabled 8506 | -6/Garrison | Garrison Relay disabled 8542 | -6/Garrison | Discovered new exit (range 13) 8897 | -6/Garrison | Build established: Scavenger-Mutant 9304 | -6/Garrison | Build established: Mutant 10043 | -6/Garrison | Attempted to access garrison exit controls, blocked by remote lockdown 10134 | -6/Garrison | Entered Factory 10340 | -6/Factory | Build established: Tank 10484 | -6/Factory | First assault squad dispatched 10782 | -6/Factory | Retrieved Zion intel report: Unaware Schematics 10872 | -6/Factory | Retrieved Zion intel report: Depthwide Sectors/-6 10971 | -6/Factory | Retrieved Zion intel report: Component Stockpiles 11045 | -6/Factory | Fabricated H-55 Commando? 11219 | -6/Factory | Retrieved Zion intel report: Active Garrisons 11321 | -6/Factory | Identified exit to Garrison 11321 | -6/Factory | Entered Garrison 11321 | -6/Garrison | Accompanied by 2 allies 11354 | -6/Garrison | Triggered checkpoint 11544 | -6/Garrison | Retrieved Zion intel report: Emergency Access 11620 | -6/Garrison | Spotted B-75 Beast 11685 | -6/Garrison | Build established: Mutant 11719 | -6/Garrison | Lost 5 parts (1p3u1w) 11789 | -6/Garrison | Destroyed B-75 Beast 11797 | -6/Garrison | Triggered checkpoint 11859 | -6/Garrison | Discovered new exit (range 8) 11869 | -6/Garrison | Found embedded Infiltrators 11893 | -6/Garrison | Triggered checkpoint 11968 | -6/Garrison | Garrison Relay disabled 12201 | -6/Garrison | Triggered checkpoint 12227 | -6/Garrison | Build established: Scavenger-Mutant 12285 | -6/Garrison | Discovered new exit (range 8) 12393 | -6/Garrison | Triggered checkpoint 12475 | -6/Garrison | Garrison Relay disabled 12561 | -6/Garrison | Triggered checkpoint 12687 | -6/Garrison | Garrison Relay disabled 12691 | -6/Garrison | Triggered checkpoint 12738 | -6/Garrison | Discovered new exit (range 15) 12785 | -6/Garrison | Spotted Executioner 13138 | -6/Garrison | Garrison Relay disabled 13163 | -6/Garrison | Phase Generator disabled 13181 | -6/Garrison | Garrison Relay disabled 13467 | -6/Garrison | Build established: Scavenger-Tank 13637 | -6/Garrison | Entered Factory 13746 | -6/Factory | Identified exit to DSF 13747 | -6/Factory | Entered DSF 13770 | -6/DSF | Additional patrols routed to DSF 13782 | -6/DSF | Core integrity fell below 50% 13876 | -6/DSF | Sterilization system engaged 13883 | -6/DSF | Discovered exit to Factory (range 15) 13896 | -6/DSF | Ambient heat levels rising (+10) 13911 | -6/DSF | Ambient heat levels rising (+10) 13926 | -6/DSF | Ambient heat levels rising (+10) 13938 | -6/DSF | Entered Factory 13938 | -5/Factory | Evolved 2 slots: Propulsion x1, Utility x1 14249 | -5/Factory | Build established: Scavenger-Skirmisher 14325 | -5/Factory | Retrieved Zion intel report: Unaware Schematics 14417 | -5/Factory | Discovered new exit (range 9) 14426 | -5/Factory | Entered Extension 14496 | -5/Extension | Warlord forces began an assault 14594 | -5/Extension | Spotted B-75 Beast 14615 | -5/Extension | Spotted B-75 Beast 14626 | -5/Extension | Build established: Scavenger-Tank 14655 | -5/Extension | Lost 8 allies 14759 | -5/Extension | Discovered new exit (range 3) 14926 | -5/Extension | Retrieved Zion intel report: Trap Installations 14936 | -5/Extension | Rescued a captive Derelict 15003 | -5/Extension | Rescued a captive Derelict 15007 | -5/Extension | Rescued a captive Derelict 15122 | -5/Extension | Rescued a captive Derelict 15137 | -5/Extension | Rescued a captive Derelict 15173 | -5/Extension | Rescued a captive Derelict 15175 | -5/Extension | Rescued a captive Derelict 15254 | -5/Extension | Retrieved Zion intel report: Prototype Schematics 15281 | -5/Extension | Build established: Scavenger-Mutant 15328 | -5/Extension | Repaired Hyb. Antimatter Reactor 15371 | -5/Extension | Retrieved Zion intel report: Component Schematics 15450 | -5/Extension | Retrieved Zion intel report: Prototype Stockpiles 15646 | -5/Extension | Rescued A7 15688 | -5/Extension | Discovered new exit (range 10) 15690 | -5/Extension | Discovered new exit (range 6) 15799 | -5/Extension | Build established: Scavenger-Tank 16041 | -5/Extension | Entered Factory 16041 | -4/Factory | Accompanied by 6 allies (A7) 16041 | -4/Factory | Evolved 2 slots: Propulsion x1, Utility x1 16183 | -4/Factory | Spotted B-86 Titan 16188 | -4/Factory | Destroyed B-86 Titan 16389 | -4/Factory | Spotted B-86 Titan 16462 | -4/Factory | Destroyed B-86 Titan 16492 | -4/Factory | Lost 6 parts (1n3u2w) 16760 | -4/Factory | Garrison activated, responded to threat 16798 | -4/Factory | Lost 3 parts (1n2u) 16845 | -4/Factory | Identified exit to Garrison 16845 | -4/Factory | Entered Garrison 16869 | -4/Garrison | Triggered checkpoint 16939 | -4/Garrison | Garrison Relay disabled 16941 | -4/Garrison | Triggered checkpoint 17163 | -4/Garrison | Spotted B-86 Titan 17163 | -4/Garrison | Triggered checkpoint 17247 | -4/Garrison | Lost 6 parts (2n2u2w) 17256 | -4/Garrison | Destroyed 7 combat bots 17321 | -4/Garrison | Destroyed B-86 Titan 17347 | -4/Garrison | Lost 12 parts (1p6n3u2w) 17515 | -4/Garrison | Lost 5 parts (2n1u2w) 17603 | -4/Garrison | Triggered checkpoint 17752 | -4/Garrison | Core integrity fell below 50% 17774 | -4/Garrison | System corruption reached 10% 17816 | -4/Garrison | Lost 5 parts (1n2u2w) 18076 | -4/Garrison | Build established: Mutant 18467 | -4/Garrison | Triggered checkpoint 18469 | -4/Garrison | Build established: Scavenger-Gunner 18542 | -4/Garrison | Triggered checkpoint 18586 | -4/Garrison | Garrison Relay disabled 18605 | -4/Garrison | Triggered checkpoint 18704 | -4/Garrison | Discovered new exit (range 12) 18709 | -4/Garrison | Spotted B-90 Cyclops 18945 | -4/Garrison | Discovered new exit (range 11) 18951 | -4/Garrison | Triggered checkpoint 18986 | -4/Garrison | Core integrity fell below 20% 19028 | -4/Garrison | Lost 3 parts (2n1w) 19087 | -4/Garrison | Triggered checkpoint 19088 | -4/Garrison | Garrison Relay disabled 19102 | -4/Garrison | Destroyed by Y-64 Sentinel with Wave Gun Last Messages --------------- 19050_ Acquired Adv. Heat Sink. 19087_ Beams of light sweep through the air. An alarm sounds. 19087_ Neutrino Core destroyed. 19088_ Garrison Relay disabled. 19088_ Relay Coupler [Grunt] tumbles out of relay unit. 19088_ Relay Coupler [NC] tumbles out of relay unit. 19088_ Relay Coupler [Brawler] tumbles out of relay unit. 19088_ Relay Coupler [Grunt] tumbles out of relay unit. 19088_ Penetrated by Slug. 19091_ Flexi-carbon Leg destroyed. 19091_ Penetrated by Slug. 19095_ ALERT: Garrison interior compromised. 19095_ System corrupted: Autogun jammed. 19096_ Penetrated by Slug. 19096_ Critical hit (Destroy). 19096_ Autogun destroyed. 19097_ Penetrated by Slug. 19099_ Slug penetrates Y-64 Sentinel. 19101_ I0MX9BIODMFIFPPLABUV1IDKWBKTC:Z: 19102_ Slug penetrates Y-64 Sentinel. Map ----- +----------------------------------------------------+ | | | | | | | | | | | | | | | | | | | | | ???????????????????????????????????? | | ???????????????????????????????????? | | ???????????????????????????????????? | | ???????????????????????????????????? | | ?????????####??????????????????????? | | ?????????#"""#?????????????????????? | | ?????????#" "??????????????????????? | | ?????????#" "#?????????????????????? | | ?????????#" "#?????????????????????? | | ?????????# ^ ??????????????????????? | | ###########*################???????? | | #!*[[ #???????? | | =]!!/ * #???????? | | ###########/ ### ###### #???????? | | ??????????#%!#?# #????# #???????? | | ??????????#=%#?#####????#@ #???????? | | ??????????#%=#????????? !!#?????? | | ??????????#*!+????????#Y !!"#?????? | | ??????????# #????????#Y "#?????? | | ??????????# #????????### #"#?????? | | ??????????# #??????????# ###?????? | | ?????????? #??????????# #???????? | | ??????????< #??????????# #???????? | | ?????????? #??????????####???????? | | ??????????# #?????????????????????? | | ??????????# ??????????????????????? | | ??????????# ??????????????????????? | | ??????????? ??????????????????????? | | ??????????? ??????????????????????? | | ??????????? ??????????????????????? | | ???????????????????????????????????? | | ???????????????????????????????????? | | ####???????????????????????????????? | | ????????????????????????????? | | ????????????????????????????? | | ###????????????????????????????????? | | ???????????????????????????????????? | | ???????????????????????????????????? | | ???????????????????????????????????? | | ???????????????????????????????????? | +----------------------------------------------------+ Best States ------------- Heat Dissipation 81 Energy Generation 41 Energy Capacity 1900 Matter Stores 984 Matter Capacity 1100 Sight Range 20 Terrain Scan Range 16 Terrain Scan Density 10 ECM Strength 2 Power Amplification 40 Armor Coverage 450 Resistance: KI 20 Resistance: TH 20 Resistance: EX 20 Resistance: EM 20 Resistance: I 20 Resistance: S 20 Resistance: P 20 Core Shielding 30 Evasion (%) 70 Targeting Accuracy 6 Recoil Reduction 3 Energy Filtering 30 Kinecelleration 30 Offensive Hacking 10 Defensive Hacking 10 Item Schematics ----------------- Imp. Hover Unit | -9/Materials | Scanalyzed Gatling Laser | -7/Factory | Hacked Proton Cannon | -7/Zion | Archive Med. Reflective Plating | -7/Zion | Archive Imp. Trap Scanner | -7/Zion | Archive Mni. Drone Bay | -7/Zion | Archive Adv. Sensor Array | -7/Zion | Archive Plasma Cannon | -7/Zion | Archive Power Amplifier | -7/Zion | Archive Gauss Cannon | -7/Zion | Archive Remote Datajack | -7/Zion | Archive Adv. System Shield | -7/Zion | Archive Imp. Cooling System | -7/Zion | Archive Adv. Signal Interpreter | -7/Zion | Archive Gravmag System | -7/Zion | Archive Adv. Melee Analysis Suite | -7/Zion | Archive Riot Gun | -7/Zion | Free Flamer | -7/Zion | Free Enh. Flamer | -7/Zion | Free Bore Cannon | -7/Zion | Free Phasing Sabre | -7/Zion | Free Hvy. Deuterium Engine | -6/Factory | Z-intel Exp. Propulsion Shielding | -6/Factory | Z-intel Cold Fusion Reactor | -6/Factory | Z-intel F-cell Engine | -6/Factory | Z-intel Rocket Array | -6/Factory | Z-intel Force Rifle | -6/Factory | Z-intel Gui. EMP Blaster | -6/Factory | Z-intel Prc. Grenade Launcher | -6/Factory | Z-intel Imp. Lightning Gun | -6/Factory | Z-intel Cld. Aerolev Unit | -6/Factory | Z-intel Multireflex Exoskeleton | -6/Factory | Z-intel Cld. Fission Core | -5/Extension | Z-intel Enh. Coil Gun | -5/Extension | Z-intel Enh. Fission Core | -5/Extension | Z-intel Cld. VTOL Module | -5/Extension | Z-intel Prc. Energy Filter | -5/Extension | Z-intel Enh. Flexi-carbon Leg | -5/Extension | Z-intel Hvy. Gatling Laser | -5/Extension | Z-intel Cld. Plasma Cannon | -5/Extension | Z-intel Com. Ion Cannon | -5/Extension | Z-intel Ion Burst Cannon | -5/Extension | Z-intel Adv. Shield Generator | -5/Extension | Z-intel Lgt. Angular Momentum Engine | -5/Extension | Z-intel Tesla Rifle | -5/Extension | Z-intel Com. Wheel | -5/Extension | Z-intel Imp. Proton Missile Launcher | -5/Extension | Z-intel Smartbomb Launcher | -5/Extension | Z-intel Arc Projector | -5/Extension | Z-intel Adv. Heat Sink | -5/Extension | Z-intel Antigrav System | -5/Extension | Z-intel Remote Force Field | -5/Extension | Z-intel ECM Suite | -5/Extension | Z-intel Reflective Plating | -5/Extension | Z-intel Weapon Cycler | -5/Extension | Z-intel Imp. Coolant Injector | -5/Extension | Z-intel Imp. Targeting Computer | -5/Extension | Z-intel Robot Schematics ------------------ H-55 Commando | -7/Zion | Archive R-06 Scavenger | -7/Zion | Archive M-28 Smith | -7/Zion | Archive M-14 Sweeper | -6/Factory | Z-intel K-01 Serf | -6/Factory | Z-intel A-15 Conveyor | -6/Factory | Z-intel E-15 Imp | -5/Factory | Z-intel B-48 Gladiator | -5/Factory | Z-intel A-02 Transporter | -5/Factory | Z-intel Fabricated ------------ H-55 Commando | x2 | -6/Factory Repaired ---------- Hyb. Antimatter Reactor | 22% | -5/Extension Alien Tech Used ----------------- None Achievements -------------- Freeware Challenges ------------ None Game ------ Seed SensorActuatorShredder Manual? 0 Play Time 04:04:26 Cumulative 304.2 hours Start 2025.05.26 @ 14:50:33 End 2025.07.03 @ 08:25:01 Sessions 27 Manual Loads 0 Difficulty Adventurer Special Mode None Game No. 250 Rogue 0 Adventurer 187 Explorer 63 Win Type - Total 0 Types 0/0/0/0/0/0/0/0/0/0 Lore% 45 Gallery% 58 Achievement% 52 Wizard Run 0 Options --------- Layout 0 ASCII 0 Keyboard 0 Movement Mouse Keybinds 0 Fullscreen 1 Font 24/Smallcaps Map View 76x50 Zoom Use 0% Tactical HUD 1 Map Filters NONE Filters NONE Steam 1 RUN: d498cd1b-9972-4852-b687-3cea3fb0da98